fUST/lending_fUST_20240215
["ID","MTS","AMOUNT","RATE_DAILY","PERIOD"]
[314128050,1708011040183,-200.0,0.00033245,2]
[314128051,1708011040192,-200.0,0.00033245,2]
[314128052,1708011040202,-200.0,0.00033245,2]
[314128053,1708011040214,-200.0,0.00033245,2]
[314128054,1708011040223,-200.0,0.00033245,2]
[314128055,1708011040232,-200.0,0.00033245,2]
[314128056,1708011040241,-200.0,0.00033245,2]
[314128057,1708011040251,-200.0,0.00033245,2]
[314128058,1708011040261,-200.0,0.00033245,2]
[314128059,1708011040270,-200.0,0.00033245,2]
[314128060,1708011040279,-200.0,0.00033245,2]
[314128061,1708011040289,-200.0,0.00033245,2]
[314128062,1708011040298,-200.0,0.00033245,2]
[314128063,1708011040308,-200.84794,0.00033245,2]
[314128064,1708011040317,-6219.81694393,0.0003332,3]
[314128065,1708011040327,-3426.46667544,0.0003332,4]
[314128066,1708011040336,-156.11,0.00033336,2]
[314128067,1708011040345,-156.11,0.00033336,2]
[314128068,1708011040355,-156.11,0.00033336,2]
[314128069,1708011040363,-500.0,0.00033336,7]
[314128070,1708011040373,-500.0,0.00033336,7]
[314128071,1708011040382,-500.0,0.00033336,7]
[314128072,1708011040391,-500.0,0.00033336,7]
[314128073,1708011040400,-500.0,0.00033336,7]
[314128074,1708011040409,-475.64968036,0.00033336,7]
[314128075,1708011040418,-500.0,0.00033336,7]
[314128076,1708011040428,-500.0,0.00033336,7]
[314128077,1708011040437,-500.0,0.00033336,7]
[314128078,1708011040446,-500.0,0.00033336,7]
[314128079,1708011040455,-500.0,0.00033336,7]
[314128080,1708011040465,-500.0,0.00033336,7]
[314128081,1708011040474,-500.0,0.00033336,7]
[314128082,1708011040483,-500.0,0.00033336,7]
[314128083,1708011040492,-500.0,0.00033336,7]
[314128084,1708011040501,-500.0,0.00033336,7]
[314128085,1708011040510,-500.0,0.00033336,7]
[314128086,1708011040519,-500.0,0.00033336,7]
[314128087,1708011040531,-372.32978292,0.00033336,7]
[314128088,1708011040540,-500.0,0.00033336,7]
[314128089,1708011040549,-500.0,0.00033336,7]
[314128090,1708011040559,-500.0,0.00033336,7]
[314128091,1708011040568,-500.0,0.00033336,7]
[314128092,1708011040578,-403.91579832,0.00033336,7]
[314128093,1708011040588,-500.0,0.00033336,7]
[314128094,1708011040597,-500.0,0.00033336,7]
[314128095,1708011040606,-443.60167544,0.00033336,7]
[314128096,1708011040615,-500.0,0.00033336,7]
[314128097,1708011040624,-500.0,0.00033336,7]
[314128098,1708011040633,-500.0,0.00033336,7]
[314128099,1708011040643,-500.0,0.00033336,7]
[314128100,1708011040653,-284.38640785,0.00033336,7]
[314128101,1708011040664,-500.0,0.00033336,7]
[314128102,1708011040674,-500.0,0.00033336,7]
[314128103,1708011040683,-500.0,0.00033336,7]
[314128104,1708011040693,-500.0,0.00033336,7]
[314128105,1708011040702,-500.0,0.00033336,7]
[314128106,1708011040714,-500.0,0.00033336,7]
[314128107,1708011040723,-500.0,0.00033336,7]
[314128108,1708011040732,-500.0,0.00033336,7]
[314128109,1708011040742,-500.0,0.00033336,7]
[314128110,1708011040751,-500.0,0.00033336,7]
[314128111,1708011040761,-374.37677722,0.00033336,7]
[314128112,1708011040770,-500.0,0.00033336,7]
[314128113,1708011040780,-500.0,0.00033336,7]
[314128114,1708011040789,-500.0,0.00033336,7]
[314128115,1708011040799,-500.0,0.00033336,7]
[314128117,1708011040808,-500.0,0.00033336,7]
[314128119,1708011040817,-500.0,0.00033336,7]
[314128121,1708011040827,-629.75224407,0.00033336,7]
[314128122,1708011040836,-500.0,0.00033336,7]
[314128123,1708011040845,-500.0,0.00033336,7]
[314128124,1708011040854,-500.0,0.00033336,7]
[314128125,1708011040863,-500.0,0.00033336,7]
[314128126,1708011040872,-567.73067803,0.00033336,7]
[314128127,1708011040882,-500.0,0.00033336,7]
[314128128,1708011040893,-500.0,0.00033336,7]
[314128129,1708011040902,-500.0,0.00033336,7]
[314128130,1708011040911,-500.0,0.00033336,7]
[314128131,1708011040920,-500.0,0.00033336,7]
[314128132,1708011040931,-500.0,0.00033336,7]
[314128133,1708011040941,-599.31139545,0.00033336,7]
[314128134,1708011040950,-457.81890924,0.00033336,7]
[314128135,1708011040963,-500.0,0.00033336,7]
[314128136,1708011040972,-500.0,0.00033336,7]
[314128137,1708011040982,-500.0,0.00033336,7]
[314128138,1708011040991,-500.0,0.00033336,7]
[314128139,1708011041001,-500.0,0.00033336,7]
[314128140,1708011041010,-500.0,0.00033336,7]
[314128141,1708011041020,-500.0,0.00033336,7]
[314128142,1708011041030,-500.0,0.00033336,7]
[314128143,1708011041040,-500.0,0.00033336,7]
[314128144,1708011041049,-500.0,0.00033336,7]
[314128145,1708011041059,-500.0,0.00033336,7]
[314128146,1708011041069,-269.10788283,0.00033336,7]
[314128147,1708011041078,-500.0,0.00033336,7]
[314128148,1708011041089,-500.0,0.00033336,7]
[314128149,1708011041100,-500.0,0.00033336,7]
[314128150,1708011041109,-500.0,0.00033336,7]
[314128151,1708011041119,-500.0,0.00033336,7]
[314128152,1708011041129,-500.0,0.00033336,7]
[314128153,1708011041138,-500.0,0.00033336,7]
[314128154,1708011041148,-500.0,0.00033336,7]
[314128155,1708011041158,-500.0,0.00033336,7]
[314128156,1708011041167,-500.0,0.00033336,7]
[314128157,1708011041177,-500.0,0.00033336,7]
[314128158,1708011041186,-500.0,0.00033336,7]
[314128159,1708011041196,-500.0,0.00033336,7]
[314128160,1708011041209,-650.0,0.00033337,26]
[314128161,1708011041218,-650.0,0.00033337,30]
[314128162,1708011041227,-250.0,0.00033337,2]
[314128163,1708011041236,-500.0,0.00033337,7]
[314128164,1708011041246,-413.88806425,0.00033337,7]
[314128165,1708011041255,-500.0,0.00033337,7]
[314128166,1708011041264,-500.0,0.00033337,7]
[314128167,1708011041274,-500.0,0.00033337,7]
[314128168,1708011041284,-241.32961931,0.00033337,7]
[314128169,1708011041294,-235.94005379,0.00033337,7]
[314128170,1708011041304,-460.45033616,0.00033337,7]
[314128171,1708011041313,-500.0,0.00033337,7]
[314128172,1708011041389,-520.38106487,0.00033337,7]
[314128173,1708011041398,-500.0,0.00033337,7]
[314128174,1708011041408,-500.0,0.00033337,7]
[314128175,1708011041418,-500.0,0.00033337,7]
[314128176,1708011041427,-432.22013115,0.00033337,7]
[314128177,1708011041437,-197.33585836,0.00033337,7]
[314128178,1708011041447,-500.0,0.00033337,7]
[314128179,1708011041456,-279.0961051,0.00033337,7]
[314128180,1708011041466,-500.0,0.00033337,7]
[314128181,1708011041475,-500.0,0.00033337,7]
[314128182,1708011041484,-500.0,0.00033337,7]
[314128183,1708011041494,-500.0,0.00033337,7]
[314128184,1708011041503,-500.0,0.00033337,7]
[314128185,1708011041511,-500.0,0.00033337,7]
[314128186,1708011041521,-500.0,0.00033337,7]
[314128187,1708011041530,-500.0,0.00033337,7]
[314128188,1708011041539,-500.0,0.00033337,7]
[314128189,1708011041549,-500.0,0.00033337,7]
[314128190,1708011041558,-500.0,0.00033337,7]
[314128191,1708011041568,-500.0,0.00033337,7]
[314128192,1708011041588,-500.0,0.00033337,7]
[314128193,1708011041598,-370.78363729,0.00033337,7]
[314128194,1708011041608,-500.0,0.00033337,7]
[314128195,1708011041618,-500.0,0.00033337,7]
[314128196,1708011041628,-465.73881659,0.00033337,7]
[314128197,1708011041646,-214.22248471,0.00033337,7]
[314128198,1708011041669,-500.0,0.00033337,7]
[314128199,1708011041679,-500.0,0.00033337,7]
[314128200,1708011041700,-500.0,0.00033337,7]
[314128201,1708011041728,-500.0,0.00033337,7]
[314128202,1708011041754,-500.0,0.00033337,7]
[314128203,1708011041767,-500.0,0.00033337,7]
[314128204,1708011041791,-500.0,0.00033337,7]
[314128205,1708011041809,-500.0,0.00033337,7]
[314128206,1708011041820,-500.0,0.00033337,7]
[314128207,1708011041830,-500.0,0.00033337,7]
[314128208,1708011041839,-500.0,0.00033337,7]
[314128209,1708011041849,-500.0,0.00033337,7]
[314128210,1708011041859,-500.0,0.00033337,7]
[314128211,1708011041869,-500.0,0.00033337,7]
[314128212,1708011041879,-500.0,0.00033337,7]
[314128213,1708011041892,-500.0,0.00033337,7]
[314128214,1708011041902,-500.0,0.00033337,7]
[314128215,1708011041911,-341.84697268,0.00033337,7]
[314128216,1708011041921,-500.0,0.00033337,7]
[314128217,1708011041931,-365.16182033,0.00033337,7]
[314128218,1708011041940,-500.0,0.00033337,7]
[314128219,1708011041950,-500.0,0.00033337,7]
[314128220,1708011041962,-500.0,0.00033337,7]
[314128221,1708011041971,-500.0,0.00033337,7]
[314128222,1708011041982,-500.0,0.00033337,7]
[314128223,1708011041991,-500.0,0.00033337,7]
[314128224,1708011042001,-500.0,0.00033337,7]
[314128225,1708011042011,-317.89091189,0.00033337,7]
[314128226,1708011042021,-500.0,0.00033337,7]
[314128227,1708011042030,-500.0,0.00033337,7]
[314128228,1708011042040,-500.0,0.00033337,7]
[314128229,1708011042049,-500.0,0.00033337,7]
[314128230,1708011042060,-500.0,0.00033337,7]
[314128231,1708011042070,-500.0,0.00033337,7]
[314128232,1708011042079,-500.0,0.00033337,7]
[314128233,1708011042090,-500.0,0.00033337,7]
[314128234,1708011042100,-500.0,0.00033337,7]
[314128235,1708011042109,-500.0,0.00033337,7]
[314128236,1708011042118,-500.0,0.00033337,7]
[314128237,1708011042128,-500.0,0.00033337,7]
[314128238,1708011042137,-500.0,0.00033337,7]
[314128239,1708011042146,-500.0,0.00033337,7]
[314128240,1708011042156,-500.0,0.00033337,7]
[314128241,1708011042166,-500.0,0.00033337,7]
[314128242,1708011042176,-500.0,0.00033337,7]
[314128243,1708011042185,-500.0,0.00033337,7]
[314128244,1708011042195,-500.0,0.00033337,7]
[314128245,1708011042204,-500.0,0.00033337,7]
[314128246,1708011042217,-500.0,0.00033337,7]
[314128247,1708011042227,-500.0,0.00033337,7]
[314128248,1708011042236,-500.0,0.00033337,7]
[314128249,1708011042245,-500.0,0.00033337,7]
[314128250,1708011042255,-500.0,0.00033337,7]
[314128251,1708011042264,-300.0,0.00033337,7]
[314128252,1708011042274,-500.0,0.00033337,7]
[314128253,1708011042283,-200.0,0.00033337,7]
[314128254,1708011042294,-263.5921981,0.00033337,7]
[314128255,1708011042303,-384.20210103,0.00033337,7]
[314128256,1708011042313,-181.08358268,0.00033337,7]
[314128257,1708011042322,-382.62240838,0.00033337,7]
[314128258,1708011042332,-566.59015505,0.00033337,7]
[314128259,1708011042342,-229.74785311,0.00033337,7]
[314128260,1708011042351,-198.26515643,0.00033337,7]
[314128261,1708011042361,-155.99064426,0.00033337,7]
[314128262,1708011042371,-500.0,0.00033337,7]
[314128263,1708011042381,-418.78976476,0.00033337,7]
[314128264,1708011042393,-500.0,0.00033337,7]
[314128265,1708011042405,-500.0,0.00033337,7]
[314128266,1708011042414,-500.0,0.00033337,7]
[314128267,1708011042424,-717610.72077359,0.00033338,2]
[314128268,1708011042441,-81652.17543934,0.00033338,2]
[314128269,1708011042588,-160.0,0.00033,2]
[314128270,1708011042598,-2720.685,0.00033338,2]
[314128278,1708011045915,-2348.90735023,0.00033338,2]
[314128298,1708011046543,-285.94569211,0.00033338,2]
[314128312,1708011984256,157.738695,0.00030959,120]
[314128349,1708012232699,-152.03024994,0.00026191,2]
[314128352,1708012232709,-166.666666,0.00027535,2]
[314128354,1708012232718,-250.0,0.0002818,2]
[314128356,1708012232727,-24900.0,0.00028237,2]
[314128357,1708012232736,-512.989269,0.00028258,2]
[314128360,1708012232746,-168.599637,0.00028272,2]
[314128362,1708012232755,-613.2697079,0.00028461,2]
[314128363,1708012232764,-950.92714073,0.00029,2]
[314128366,1708012232773,-155.0,0.00029,2]
[314128368,1708012232782,-633.47440703,0.00029337,2]
[314128370,1708012232792,-200.0,0.00029648,15]
[314128372,1708012232801,-681.87937957,0.000299,2]
[314128374,1708012232810,-4787.52,0.00029989,3]
[314128376,1708012232819,-500.0,0.00029999,2]
[314128378,1708012232829,-500.0,0.00029999,2]
[314128379,1708012232838,-500.0,0.00029999,2]
[314128382,1708012232848,-500.0,0.00029999,2]
[314128384,1708012232857,-500.0,0.00029999,2]
[314128385,1708012232866,-500.0,0.00029999,2]
[314128388,1708012232876,-500.0,0.00029999,2]
[314128390,1708012232886,-500.0,0.00029999,2]
[314128392,1708012232895,-500.0,0.00029999,2]
[314128394,1708012232907,-500.0,0.00029999,2]
[314128396,1708012232916,-500.0,0.00029999,2]
[314128398,1708012232926,-500.0,0.00029999,2]
[314128400,1708012232934,-500.0,0.00029999,2]
[314128402,1708012232943,-500.0,0.00029999,2]
[314128404,1708012232952,-500.0,0.00029999,2]
[314128406,1708012232961,-500.0,0.00029999,2]
[314128408,1708012232970,-500.0,0.00029999,2]
[314128410,1708012232980,-500.0,0.00029999,2]
[314128412,1708012232989,-500.0,0.00029999,2]
[314128414,1708012232998,-500.0,0.00029999,2]
[314128416,1708012233007,-443.60167544,0.00029999,2]
[314128418,1708012233016,-500.0,0.00029999,2]
[314128420,1708012233025,-500.0,0.00029999,2]
[314128422,1708012233034,-629.75224407,0.00029999,2]
[314128424,1708012233043,-500.0,0.00029999,2]
[314128426,1708012233051,-500.0,0.00029999,2]
[314128428,1708012233061,-500.0,0.00029999,2]
[314128430,1708012233070,-372.32978292,0.00029999,2]
[314128432,1708012233079,-500.0,0.00029999,2]
[314128434,1708012233088,-599.31139545,0.00029999,2]
[314128436,1708012233098,-500.0,0.00029999,2]
[314128438,1708012233107,-95.09764495,0.00029999,2]
[314128440,1708012233120,-404.90235505,0.00029999,2]
[314128442,1708012233129,-284.38640785,0.00029999,2]
[314128444,1708012233138,-90.08123119,0.00029999,2]
[314128452,1708012233216,-409.91876881,0.00029999,2]
[314128453,1708012233225,-500.0,0.00029999,2]
[314128454,1708012233235,-500.0,0.00029999,2]
[314128455,1708012233245,-500.0,0.00029999,2]
[314128456,1708012233256,-500.0,0.00029999,2]
[314128457,1708012233265,-500.0,0.00029999,2]
[314128458,1708012233275,-500.0,0.00029999,2]
[314128459,1708012233284,-500.0,0.00029999,2]
[314128460,1708012233295,-500.0,0.00029999,2]
[314128461,1708012233304,-500.0,0.00029999,2]
[314128462,1708012233314,-500.0,0.00029999,2]
[314128463,1708012233323,-500.0,0.00029999,2]
[314128464,1708012233335,-500.0,0.00029999,2]
[314128466,1708012233344,-500.0,0.00029999,2]
[314128468,1708012233354,-500.0,0.00029999,2]
[314128470,1708012233364,-500.0,0.00029999,2]
[314128472,1708012233373,-500.0,0.00029999,2]
[314128474,1708012233382,-500.0,0.00029999,2]
[314128476,1708012233391,-500.0,0.00029999,2]
[314128478,1708012233401,-475.64968036,0.00029999,2]
[314128480,1708012233412,-474.43155083,0.00029999,2]
[314128482,1708012233424,-25.56844917,0.00029999,2]
[314128484,1708012233433,-500.0,0.00029999,2]
[314128486,1708012233442,-500.0,0.00029999,2]
[314128488,1708012233452,-500.0,0.00029999,2]
[314128490,1708012233461,-500.0,0.00029999,2]
[314128492,1708012233471,-500.0,0.00029999,2]
[314128494,1708012233480,-500.0,0.00029999,2]
[314128495,1708012233490,-457.65194926,0.00029999,2]
[314128498,1708012233503,-42.34805074,0.00029999,2]
[314128500,1708012233513,-500.0,0.00029999,2]
[314128501,1708012233522,-500.0,0.00029999,2]
[314128503,1708012233531,-500.0,0.00029999,2]
[314128506,1708012233541,-241.07882829,0.00029999,2]
[314128507,1708012233551,-500.0,0.00029999,2]
[314128509,1708012233560,-500.0,0.00029999,2]
[314128511,1708012233570,-500.0,0.00029999,2]
[314128513,1708012233579,-500.0,0.00029999,2]
[314128515,1708012233589,-500.0,0.00029999,2]
[314128517,1708012233598,-500.0,0.00029999,2]
[314128519,1708012233607,-500.0,0.00029999,2]
[314128521,1708012233616,-500.0,0.00029999,2]
[314128523,1708012233626,-500.0,0.00029999,2]
[314128524,1708012233635,-500.0,0.00029999,2]
[314128527,1708012233644,-500.0,0.00029999,2]
[314128528,1708012233655,-500.0,0.00029999,2]
[314128529,1708012233664,-500.0,0.00029999,2]
[314128530,1708012233674,-500.0,0.00029999,2]
[314128532,1708012233684,-500.0,0.00029999,2]
[314128534,1708012233693,-374.37677722,0.00029999,2]
[314128536,1708012233702,-500.0,0.00029999,2]
[314128538,1708012233711,-500.0,0.00029999,2]
[314128540,1708012233721,-500.0,0.00029999,2]
[314128542,1708012233730,-500.0,0.00029999,2]
[314128544,1708012233739,-500.0,0.00029999,2]
[314128546,1708012233748,-567.73067803,0.00029999,2]
[314128548,1708012233758,-500.0,0.00029999,2]
[314128550,1708012233767,-500.0,0.00029999,2]
[314128552,1708012233776,-500.0,0.00029999,2]
[314128554,1708012233785,-500.0,0.00029999,2]
[314128556,1708012233794,-457.81890924,0.00029999,2]
[314128558,1708012233804,-500.0,0.00029999,2]
[314128560,1708012233813,-500.0,0.00029999,2]
[314128562,1708012233821,-500.0,0.00029999,2]
[314128564,1708012233830,-500.0,0.00029999,2]
[314128566,1708012233840,-450.0,0.00029999,2]
[314128568,1708012233849,-253.60330363,0.00029999,2]
[314128616,1708012240075,-328.14992009,0.00029989,3]
[314128618,1708012240087,-728.84853436,0.00029989,3]
[314128620,1708012240098,-2932.60154555,0.00029989,3]
[314128621,1708012240108,-246.39669637,0.00029999,2]
[314128622,1708012240117,-500.0,0.00029999,2]
[314128623,1708012240127,-500.0,0.00029999,2]
[314128624,1708012240137,-559.90644258,0.00029999,2]
[314128625,1708012240146,-500.0,0.00029999,2]
[314128626,1708012240158,-500.0,0.00029999,2]
[314128627,1708012240167,-500.0,0.00029999,2]
[314128628,1708012240176,-500.0,0.00029999,2]
[314128629,1708012240185,-250.0,0.00029999,2]
[314128630,1708012240195,-184519.85,0.0003,7]
[314128631,1708012240203,-194.0,0.0003,2]
[314128632,1708012240212,-400.37155416,0.00030137,2]
[314128633,1708012240220,-155.0,0.0003037,2]
[314128634,1708012240229,-681.87937953,0.00030619,2]
[314128635,1708012240239,-500.0,0.00030684,2]
[314128636,1708012240248,-620.67372035,0.00030804,2]
[314128637,1708012240260,-157.738695,0.00030959,2]
[314128638,1708012240269,-157.738695,0.00030959,8]
[314128639,1708012240278,-157.738695,0.00030959,15]
[314128640,1708012240288,-157.738695,0.00030959,22]
[314128641,1708012240297,-157.738695,0.00030959,29]
[314128642,1708012240307,-157.738695,0.00030959,36]
[314128643,1708012240316,-157.738695,0.00030959,43]
[314128644,1708012240326,-157.738695,0.00030959,50]
[314128645,1708012240336,-157.738695,0.00030959,57]
[314128646,1708012240346,-157.738695,0.00030959,64]
[314128647,1708012240355,-157.738695,0.00030959,71]
[314128648,1708012240365,-157.738695,0.00030959,78]
[314128649,1708012240374,-157.738695,0.00030959,85]
[314128650,1708012240383,-157.738695,0.00030959,92]
[314128651,1708012240392,-157.738695,0.00030959,99]
[314128652,1708012240401,-157.738695,0.00030959,106]
[314128653,1708012240414,-157.738695,0.00030959,113]
[314128654,1708012240423,-1932.96843591,0.00031238,2]
[314128655,1708012240432,-681.87937953,0.00031338,2]
[314128656,1708012240441,-750.0,0.00031369,2]
[314128657,1708012240450,-168.769378,0.00031733,2]
[314128658,1708012240460,-155.0,0.0003174,2]
[314128659,1708012240469,-3960.57680306,0.00031997,3]
[314128660,1708012240478,-40903.0,0.00032,7]
[314128661,1708012240487,-1000.0,0.00032054,2]
[314128662,1708012240497,-681.87937953,0.00032057,2]
[314128663,1708012240506,-620.03368602,0.00032345,2]
[314128664,1708012240516,-280.0,0.00032613,15]
[314128665,1708012240525,-154.2707481,0.00032734,2]
[314128666,1708012240545,-407.4416141,0.00032734,2]
[314128667,1708012240556,-153.0,0.00032734,2]
[314128668,1708012240566,-155.5222135,0.00032734,2]
[314128669,1708012240576,-200.230317,0.00032734,2]
[314128670,1708012240586,-1250.0,0.00032739,2]
[314128671,1708012240596,-681.87937953,0.00032776,2]
[314128672,1708012240606,-5427.0,0.0003285,35]
[314128673,1708012240616,-1922.0,0.0003285,35]
[314128674,1708012240626,-4212.0,0.0003285,35]
[314128675,1708012240637,-158.74,0.0003285,35]
[314128676,1708012240646,-150.5,0.0003285,35]
[314128677,1708012240658,-150.5,0.0003285,35]
[314128678,1708012240668,-5427.0,0.0003286,35]
[314128679,1708012240677,-1922.0,0.0003286,35]
[314128680,1708012240688,-4212.0,0.0003286,35]
[314128681,1708012240698,-150.5,0.0003286,35]
[314128682,1708012240707,-150.5,0.0003286,35]
[314128683,1708012240717,-150.68,0.0003286,35]
[314128684,1708012240727,-150.91,0.0003286,35]
[314128685,1708012240736,-150.57,0.0003286,35]
[314128686,1708012240746,-182.3,0.0003286,35]
[314128687,1708012240756,-169.57,0.0003286,35]
[314128688,1708012240766,-150.5,0.0003286,35]
[314128689,1708012240775,-150.5,0.0003286,35]
[314128690,1708012240785,-5427.0,0.0003287,35]
[314128691,1708012240795,-1922.0,0.0003287,35]
[314128692,1708012240805,-4212.0,0.0003287,35]
[314128694,1708012240814,-150.5,0.0003287,35]
[314128695,1708012240824,-150.5,0.0003287,35]
[314128696,1708012240834,-150.5,0.0003287,35]
[314128697,1708012240844,-150.5,0.0003287,35]
[314128699,1708012240855,-150.5,0.0003287,35]
[314128700,1708012240865,-150.5,0.0003287,35]
[314128701,1708012240875,-150.5,0.0003287,35]
[314128702,1708012240886,-150.5,0.0003287,35]
[314128703,1708012240897,-150.5,0.0003287,35]
[314128704,1708012240909,-156.12,0.00032875,2]
[314128705,1708012240919,-156.12,0.00032875,2]
[314128706,1708012240929,-156.11,0.00032875,2]
[314128707,1708012240938,-500.0,0.00032875,7]
[314128708,1708012240948,-520.38106487,0.00032875,7]
[314128709,1708012240957,-197.33585836,0.00032875,7]
[314128710,1708012240967,-500.0,0.00032875,7]
[314128711,1708012240976,-500.0,0.00032875,7]
[314128712,1708012240986,-500.0,0.00032875,7]
[314128713,1708012240995,-500.0,0.00032875,7]
[314128714,1708012241004,-432.22013115,0.00032875,7]
[314128715,1708012241013,-500.0,0.00032875,7]
[314128716,1708012241022,-279.0961051,0.00032875,7]
[314128717,1708012241032,-500.0,0.00032875,7]
[314128718,1708012241041,-413.88806425,0.00032875,7]
[314128719,1708012241051,-500.0,0.00032875,7]
[314128721,1708012241060,-500.0,0.00032875,7]
[314128723,1708012241070,-500.0,0.00032875,7]
[314128724,1708012241079,-500.0,0.00032875,7]
[314128726,1708012241089,-500.0,0.00032875,7]
[314128728,1708012241098,-500.0,0.00032875,7]
[314128729,1708012241107,-500.0,0.00032875,7]
[314128730,1708012241116,-370.78363729,0.00032875,7]
[314128731,1708012241124,-500.0,0.00032875,7]
[314128732,1708012241133,-500.0,0.00032875,7]
[314128733,1708012241142,-500.0,0.00032875,7]
[314128734,1708012241151,-500.0,0.00032875,7]
[314128735,1708012241163,-500.0,0.00032875,7]
[314128736,1708012241172,-500.0,0.00032875,7]
[314128737,1708012241181,-500.0,0.00032875,7]
[314128738,1708012241190,-400.0,0.00032875,7]
[314128739,1708012241200,-500.0,0.00032876,7]
[314128740,1708012241209,-500.0,0.00032876,7]
[314128741,1708012241218,-514.91981209,0.00032876,7]
[314128742,1708012241227,-500.0,0.00032876,7]
[314128743,1708012241239,-506.95127322,0.00032876,7]
[314128744,1708012241248,-500.0,0.00032876,7]
[314128745,1708012241259,-500.0,0.00032876,7]
[314128746,1708012241269,-500.0,0.00032876,7]
[314128747,1708012241279,-500.0,0.00032876,7]
[314128748,1708012241288,-568.14,0.00032876,7]
[314128750,1708012241297,-500.0,0.00032876,7]
[314128751,1708012241307,-553.86325545,0.00032876,7]
[314128753,1708012241316,-504.03989668,0.00032876,7]
[314128755,1708012241325,-500.0,0.00032876,7]
[314128757,1708012241334,-500.0,0.00032876,7]
[314128758,1708012241345,-859.44,0.00032876,7]
[314128760,1708012241355,-500.0,0.00032876,7]
[314128762,1708012241365,-500.0,0.00032876,7]
[314128764,1708012241374,-500.0,0.00032876,7]
[314128766,1708012241384,-622.02392282,0.00032876,7]
[314128768,1708012241393,-500.0,0.00032876,7]
[314128769,1708012241405,-393.93306636,0.00032876,7]
[314128771,1708012241415,-582.68564277,0.00032876,7]
[314128773,1708012241424,-500.0,0.00032876,7]
[314128774,1708012241433,-500.0,0.00032876,7]
[314128775,1708012241443,-500.0,0.00032876,7]
[314128776,1708012241452,-161.36936577,0.00032876,7]
[314128777,1708012241462,-500.0,0.00032876,7]
[314128778,1708012241471,-638.34637956,0.00032876,7]
[314128779,1708012241480,-500.0,0.00032876,7]
[314128780,1708012241490,-500.0,0.00032876,7]
[314128781,1708012241499,-512.21825011,0.00032876,7]
[314128782,1708012241508,-506.44463582,0.00032876,7]
[314128783,1708012241517,-677.35,0.00032876,7]
[314128784,1708012241527,-500.0,0.00032876,7]
[314128785,1708012241632,-557.13823248,0.00032876,7]
[314128786,1708012241641,-500.0,0.00032876,7]
[314128787,1708012241651,-507.50151569,0.00032876,7]
[314128788,1708012241663,-500.0,0.00032876,7]
[314128789,1708012241673,-511.75666933,0.00032876,7]
[314128790,1708012241685,-507.21096205,0.00032876,7]
[314128791,1708012241694,-437.52618809,0.00032876,7]
[314128792,1708012241703,-500.0,0.00032876,7]
[314128793,1708012241712,-500.0,0.00032876,7]
[314128794,1708012241721,-500.0,0.00032876,7]
[314128795,1708012241730,-328.32247603,0.00032876,7]
[314128796,1708012241740,-506.84728892,0.00032876,7]
[314128797,1708012241749,-500.0,0.00032876,2]
[314128798,1708012241758,-503.85655157,0.00032876,7]